fUST/lending_fUST_20241229
["ID","MTS","AMOUNT","RATE_DAILY","PERIOD"]
[346943875,1735410639968,-500.0,0.0001553,2]
[346943876,1735410639978,-500.0,0.0001553,2]
[346943877,1735410639988,-500.0,0.0001553,2]
[346943878,1735410639997,-500.0,0.0001553,2]
[346943879,1735410640011,-500.0,0.0001553,2]
[346943880,1735410640020,-500.0,0.0001553,2]
[346943881,1735410640029,-500.0,0.0001553,2]
[346943882,1735410640039,-500.0,0.0001553,2]
[346943883,1735410640048,-500.0,0.0001553,2]
[346943884,1735410640058,-500.0,0.0001553,2]
[346943885,1735410640067,-500.0,0.0001553,2]
[346943886,1735410640076,-500.0,0.0001553,2]
[346943887,1735410640086,-501.95190898,0.0001553,2]
[346943888,1735410640095,-500.0,0.0001553,2]
[346943889,1735410640104,-503.40731804,0.0001553,2]
[346943890,1735410640114,-500.0,0.0001553,2]
[346943891,1735410640123,-500.0,0.0001553,2]
[346943892,1735410640132,-500.0,0.0001553,2]
[346943895,1735410640142,-500.0,0.0001553,2]
[346943897,1735410640151,-500.0,0.0001553,2]
[346943898,1735410640160,-500.0,0.0001553,2]
[346943899,1735410640170,-500.0,0.0001553,2]
[346943900,1735410640180,-500.0,0.0001553,2]
[346943901,1735410640189,-500.0,0.0001553,2]
[346943902,1735410640198,-500.0,0.0001553,2]
[346943903,1735410640207,-500.0,0.0001553,2]
[346943904,1735410640217,-500.0,0.0001553,2]
[346943905,1735410640226,-500.0,0.0001553,2]
[346943906,1735410640235,-500.0,0.0001553,2]
[346943907,1735410640245,-500.0,0.0001553,2]
[346943908,1735410640255,-500.0,0.0001553,2]
[346943909,1735410640264,-210.7160461,0.0001553,2]
[346943910,1735410640274,-500.0,0.0001553,2]
[346943911,1735410640284,-500.0,0.0001553,2]
[346943912,1735410640293,-500.0,0.0001553,2]
[346943913,1735410640302,-500.0,0.0001553,2]
[346943914,1735410640312,-500.0,0.0001553,2]
[346943915,1735410640323,-500.0,0.0001553,2]
[346943916,1735410640332,-500.0,0.0001553,2]
[346943917,1735410640341,-500.0,0.0001553,2]
[346943918,1735410640351,-500.0,0.0001553,2]
[346943919,1735410640360,-214.78243939,0.0001553,2]
[346943920,1735410640369,-500.0,0.0001553,2]
[346943921,1735410640379,-500.0,0.0001553,2]
[346943922,1735410640388,-500.0,0.0001553,2]
[346943923,1735410640397,-457.96000079,0.0001553,2]
[346943924,1735410640406,-500.0,0.0001553,2]
[346943925,1735410640416,-500.0,0.0001553,2]
[346943926,1735410640425,-500.0,0.0001553,2]
[346943927,1735410640435,-500.0,0.0001553,2]
[346943928,1735410640445,-500.0,0.0001553,2]
[346943929,1735410640454,-502.79016131,0.0001553,2]
[346943930,1735410640464,-500.0,0.0001553,2]
[346943931,1735410640474,-500.0,0.0001553,2]
[346943932,1735410640483,-500.0,0.0001553,2]
[346943933,1735410640493,-500.0,0.0001553,2]
[346943934,1735410640503,-500.0,0.0001553,2]
[346943935,1735410640513,-500.0,0.0001553,2]
[346943936,1735410640522,-502.76434455,0.0001553,2]
[346943937,1735410640531,-500.0,0.0001553,2]
[346943938,1735410640540,-500.0,0.0001553,2]
[346943939,1735410640549,-207.78833645,0.0001553,2]
[346943940,1735410640559,-500.0,0.0001553,2]
[346943941,1735410640569,-500.0,0.0001553,2]
[346943942,1735410640579,-500.0,0.0001553,2]
[346943943,1735410640588,-500.0,0.0001553,2]
[346943944,1735410640597,-500.0,0.0001553,2]
[346943945,1735410640607,-500.0,0.0001553,2]
[346943946,1735410640616,-500.0,0.0001553,2]
[346943947,1735410640625,-500.0,0.0001553,2]
[346943948,1735410640634,-500.0,0.0001553,2]
[346943949,1735410640643,-500.0,0.0001553,2]
[346943950,1735410640652,-500.0,0.0001553,2]
[346943951,1735410640661,-500.0,0.0001553,2]
[346943952,1735410640672,-500.0,0.0001553,2]
[346943953,1735410640681,-500.0,0.0001553,2]
[346943954,1735410640690,-500.0,0.0001553,2]
[346943955,1735410640700,-500.0,0.0001553,2]
[346943956,1735410640710,-510.63690673,0.0001553,2]
[346943957,1735410640723,-500.0,0.0001553,2]
[346943958,1735410640736,-500.0,0.0001553,2]
[346943959,1735410640751,-500.0,0.0001553,2]
[346943960,1735410640763,-500.0,0.0001553,2]
[346943961,1735410640776,-500.0,0.0001553,2]
[346943962,1735410640786,-500.0,0.0001553,2]
[346943963,1735410640797,-345.91557391,0.0001553,2]
[346943964,1735410640807,-500.0,0.0001553,2]
[346943965,1735410640821,-500.0,0.0001553,2]
[346943966,1735410640833,-500.0,0.0001553,2]
[346943967,1735410640844,-500.0,0.0001553,2]
[346943968,1735410640855,-500.0,0.0001553,2]
[346943969,1735410640867,-500.0,0.0001553,2]
[346943970,1735410640880,-500.0,0.0001553,2]
[346943971,1735410640891,-500.0,0.0001553,2]
[346943972,1735410640902,-500.0,0.0001553,2]
[346943973,1735410640915,-500.0,0.0001553,2]
[346943974,1735410640929,-432.90872088,0.0001553,2]
[346943975,1735410640942,-500.0,0.0001553,2]
[346943976,1735410640953,-500.0,0.0001553,2]
[346943977,1735410640965,-500.0,0.0001553,2]
[346943978,1735410640976,-500.0,0.0001553,2]
[346943979,1735410640986,-500.0,0.0001553,2]
[346943980,1735410640998,-154.02831574,0.0001553,2]
[346943981,1735410641015,-345.97168426,0.0001553,2]
[346943982,1735410641026,-500.0,0.0001553,2]
[346943983,1735410641038,-500.0,0.0001553,2]
[346943984,1735410641051,-500.0,0.0001553,2]
[346943985,1735410641062,-500.0,0.0001553,2]
[346943986,1735410641074,-183.82024204,0.0001553,2]
[346943987,1735410641087,-316.17975796,0.0001553,2]
[346943988,1735410641098,-407.15024204,0.0001553,2]
[346943989,1735410641112,-92.84975796,0.0001553,2]
[346943990,1735410641124,-500.0,0.0001553,2]
[346943991,1735410641136,-500.0,0.0001553,2]
[346943992,1735410641148,-500.0,0.0001553,2]
[346943993,1735410641159,-500.0,0.0001553,2]
[346943994,1735410641171,-500.0,0.0001553,2]
[346943995,1735410641182,-500.0,0.0001553,2]
[346943996,1735410641193,-500.0,0.0001553,2]
[346943997,1735410641204,-500.0,0.0001553,2]
[346943998,1735410641215,-500.0,0.0001553,2]
[346943999,1735410641226,-500.0,0.0001553,2]
[346944000,1735410641237,-500.0,0.0001553,2]
[346944001,1735410641249,-622.9,0.0001553,2]
[346944002,1735410641260,-500.0,0.0001553,2]
[346944003,1735410641272,-500.0,0.0001553,2]
[346944004,1735410641284,-414.93667516,0.0001553,2]
[346944005,1735410641296,-500.0,0.0001553,2]
[346944006,1735410641306,-500.0,0.0001553,2]
[346944007,1735410641317,-500.0,0.0001553,2]
[346944008,1735410641327,-500.0,0.0001553,2]
[346944009,1735410641337,-583.66,0.0001553,2]
[346944010,1735410641347,-500.0,0.0001553,2]
[346944011,1735410641357,-500.0,0.0001553,2]
[346944012,1735410641369,-500.0,0.0001553,2]
[346944013,1735410641381,-500.0,0.0001553,2]
[346944014,1735410641393,-500.0,0.0001553,2]
[346944015,1735410641405,-644.61,0.0001553,2]
[346944016,1735410641417,-500.0,0.0001553,2]
[346944017,1735410641427,-500.0,0.0001553,2]
[346944018,1735410641437,-500.0,0.0001553,2]
[346944019,1735410641448,-500.0,0.0001553,2]
[346944020,1735410641458,-500.0,0.0001553,2]
[346944021,1735410641469,-323.56228315,0.0001553,2]
[346944022,1735410641481,-500.0,0.0001553,2]
[346944023,1735410641493,-500.0,0.0001553,2]
[346944024,1735410641503,-500.0,0.0001553,2]
[346944025,1735410641513,-500.0,0.0001553,2]
[346944026,1735410641523,-500.0,0.0001553,2]
[346944027,1735410641534,-500.0,0.0001553,2]
[346944028,1735410641543,-500.0,0.0001553,2]
[346944029,1735410641554,-500.0,0.0001553,2]
[346944030,1735410641564,-500.0,0.0001553,2]
[346944031,1735410641575,-500.0,0.0001553,2]
[346944032,1735410641586,-500.0,0.0001553,2]
[346944033,1735410641597,-500.0,0.0001553,2]
[346944034,1735410641608,-500.0,0.0001553,2]
[346944035,1735410641620,-500.0,0.0001553,2]
[346944036,1735410641631,-574.02257477,0.0001553,2]
[346944037,1735410641642,-500.0,0.0001553,2]
[346944038,1735410641652,-500.0,0.0001553,2]
[346944039,1735410641663,-500.0,0.0001553,2]
[346944040,1735410641675,-500.0,0.0001553,2]
[346944041,1735410641686,-500.0,0.0001553,2]
[346944042,1735410641696,-500.0,0.0001553,2]
[346944043,1735410641706,-500.0,0.0001553,2]
[346944044,1735410641717,-500.0,0.0001553,2]
[346944045,1735410641728,-500.0,0.0001553,2]
[346944046,1735410641744,-500.0,0.0001553,2]
[346944047,1735410641754,-500.0,0.0001553,2]
[346944048,1735410641766,-500.0,0.0001553,2]
[346944049,1735410641776,-1000.0,0.0001553,2]
[346944050,1735410641789,-521.37724118,0.0001553,2]
[346944051,1735410641802,-500.0,0.0001553,2]
[346944052,1735410641814,-544.96,0.0001553,2]
[346944053,1735410641826,-500.0,0.0001553,2]
[346944054,1735410641837,-519.2,0.0001553,2]
[346944055,1735410641847,-523.85798653,0.0001553,2]
[346944056,1735410641858,-500.0,0.0001553,2]
[346944057,1735410641870,-500.0,0.00015531,2]
[346944058,1735410641880,-500.0,0.00015531,2]
[346944059,1735410641892,-500.0,0.00015531,2]
[346944060,1735410641903,-500.0,0.00015531,2]
[346944061,1735410641915,-500.0,0.00015531,2]
[346944062,1735410641925,-500.0,0.00015531,2]
[346944063,1735410641934,-500.0,0.00015531,2]
[346944064,1735410642041,-500.0,0.00015531,2]
[346944065,1735410642055,-500.0,0.00015532,2]
[346944066,1735410642067,-500.0,0.00015532,2]
[346944067,1735410642076,-500.0,0.00015532,2]
[346944068,1735410642086,-410.91955904,0.00015534,2]
[346944069,1735410642109,-89.08044096,0.00015534,2]
[346944070,1735410642119,-500.0,0.00015534,2]
[346944071,1735410642128,-500.0,0.00015534,2]
[346944072,1735410642138,-136.70419004,0.00015534,2]
[346944073,1735410642150,-363.29580996,0.00015534,2]
[346944074,1735410642160,-500.0,0.00015534,2]
[346944075,1735410642169,-500.0,0.00015536,2]
[346944076,1735410642178,-501.38768987,0.00015537,2]
[346944077,1735410642187,-529.59318051,0.00015573,2]
[346944078,1735410642198,-500.0,0.00015801,2]
[346944079,1735410642207,-500.0,0.00015801,2]
[346944080,1735410642217,-500.0,0.00015801,2]
[346944081,1735410642226,-500.0,0.00015801,2]
[346944082,1735410642236,-452.3,0.00015801,2]
[346944083,1735410642246,-269.12,0.00015801,2]
[346944084,1735410642256,-500.0,0.00015801,2]
[346944085,1735410642267,-500.0,0.00015802,2]
[346944086,1735410642277,-500.0,0.00015802,2]
[346944087,1735410642288,-500.0,0.00015802,2]
[346944088,1735410642298,-352.66,0.00015802,2]
[346944089,1735410642308,-1129.27,0.00015802,2]
[346944090,1735410642319,-500.0,0.00015802,2]
[346944091,1735410642328,-500.0,0.00015802,2]
[346944092,1735410642336,-500.0,0.00015802,2]
[346944093,1735410642347,-500.0,0.00015802,2]
[346944094,1735410642357,-500.0,0.00015802,2]
[346944095,1735410642366,-500.0,0.00015802,2]
[346944096,1735410642376,-500.0,0.00015802,2]
[346944097,1735410642387,-500.0,0.00015802,2]
[346944098,1735410642397,-627.79,0.00015802,2]
[346944099,1735410642406,-533.97725177,0.00015802,2]
[346944100,1735410642415,-500.0,0.00015802,2]
[346944101,1735410642424,-500.0,0.00015802,2]
[346944102,1735410642434,-590.79424941,0.00015802,2]
[346944103,1735410642446,-1530.07575059,0.00015802,2]
[346944104,1735410642455,-500.0,0.00015802,2]
[346944105,1735410642466,-500.0,0.00015802,2]
[346944106,1735410642476,-264.85,0.00015803,2]
[346944107,1735410642485,-500.0,0.00015803,2]
[346944108,1735410642495,-500.0,0.00015803,2]
[346944109,1735410642505,-230.33,0.00015803,2]
[346944110,1735410642514,-500.0,0.00015803,2]
[346944111,1735410642523,-510.59,0.00015803,2]
[346944112,1735410642532,-500.0,0.00015803,2]
[346944113,1735410642542,-500.0,0.00015803,2]
[346944114,1735410642551,-500.0,0.00015803,2]
[346944115,1735410642561,-159.15138377,0.00015803,2]
[346944116,1735410642572,-500.0,0.00015803,2]
[346944117,1735410642581,-500.0,0.00015803,2]
[346944118,1735410642594,-500.0,0.00015803,2]
[346944119,1735410642603,-500.0,0.00015803,2]
[346944121,1735410642613,-524.15,0.00015803,2]
[346944123,1735410642623,-500.0,0.00015803,2]
[346944124,1735410642632,-500.0,0.00015803,2]
[346944125,1735410642642,-318.22496264,0.00015803,2]
[346944126,1735410642652,-500.0,0.00015803,2]
[346944127,1735410642663,-627.16,0.00015803,2]
[346944128,1735410642672,-500.0,0.00015803,2]
[346944129,1735410642681,-500.0,0.00015803,2]
[346944130,1735410642691,-500.0,0.00015803,2]
[346944131,1735410642701,-364.36,0.00015803,2]
[346944132,1735410642710,-500.0,0.00015803,2]
[346944133,1735410642720,-500.0,0.00015803,2]
[346944135,1735410642730,-500.0,0.00015803,2]
[346944136,1735410642739,-500.0,0.00015803,2]
[346944137,1735410642749,-500.0,0.00015803,2]
[346944138,1735410642758,-500.0,0.00015803,2]
[346944139,1735410642767,-500.0,0.00015803,2]
[346944140,1735410642776,-313.36,0.00015803,2]
[346944141,1735410642784,-500.0,0.00015803,2]
[346944142,1735410642793,-500.0,0.00015803,2]
[346944143,1735410642802,-500.0,0.00015803,2]
[346944144,1735410642812,-500.0,0.00015803,2]
[346944145,1735410642826,-220.55,0.00015803,2]
[346944146,1735410642835,-500.0,0.00015804,2]
[346944147,1735410642844,-500.0,0.00015804,2]
[346944148,1735410642853,-500.0,0.00015804,2]
[346944149,1735410642864,-500.0,0.00015804,2]
[346944150,1735410642874,-500.0,0.00015804,2]
[346944151,1735410642883,-500.0,0.00015804,2]
[346944152,1735410642892,-500.0,0.00015804,2]
[346944153,1735410642902,-500.0,0.00015804,2]
[346944154,1735410642911,-500.0,0.00015804,2]
[346944155,1735410642920,-500.0,0.00015804,2]
[346944156,1735410642929,-583.27803295,0.00015804,2]
[346944157,1735410642938,-500.0,0.00015804,2]
[346944158,1735410642947,-500.0,0.00015804,2]
[346944159,1735410642956,-500.0,0.00015804,2]
[346944160,1735410642967,-500.0,0.00015804,2]
[346944161,1735410642976,-500.0,0.00015804,2]
[346944162,1735410642985,-590.43382835,0.00015804,2]
[346944163,1735410642996,-500.0,0.00015804,2]
[346944165,1735410643005,-500.0,0.00015804,2]
[346944166,1735410643016,-481.13635452,0.00015804,2]
[346944167,1735410643025,-500.0,0.00015804,2]
[346944168,1735410643034,-595.74840044,0.00015804,2]
[346944169,1735410643044,-500.0,0.00015804,2]
[346944170,1735410643053,-500.0,0.00015804,2]
[346944171,1735410643062,-599.84,0.00015804,2]
[346944172,1735410643072,-500.0,0.00015804,2]
[346944173,1735410643082,-500.0,0.00015804,2]
[346944174,1735410643091,-185.42845574,0.00015804,2]
[346944175,1735410643102,-500.0,0.00015804,2]
[346944176,1735410643111,-500.0,0.00015804,2]
[346944177,1735410643121,-322.99040616,0.00015804,2]
[346944178,1735410643131,-500.0,0.00015804,2]
[346944179,1735410643142,-500.0,0.00015804,2]
[346944180,1735410643152,-500.0,0.00015804,2]
[346944181,1735410643163,-521.68,0.00015804,2]
[346944182,1735410643172,-500.0,0.00015804,2]
[346944183,1735410643183,-500.0,0.00015804,2]
[346944184,1735410643192,-500.0,0.00015804,2]
[346944185,1735410643202,-500.0,0.00015804,2]
[346944186,1735410643213,-338.2999621,0.00015804,2]
[346944187,1735410643223,-500.0,0.00015804,2]
[346944188,1735410643232,-500.0,0.00015804,2]
[346944189,1735410643242,-508.62516281,0.00015804,2]
[346944190,1735410643254,-500.0,0.00015804,2]
[346944191,1735410643264,-500.0,0.00015804,2]
[346944192,1735410643274,-500.0,0.00015804,2]
[346944193,1735410643283,-500.0,0.00015804,2]
[346944194,1735410643291,-500.0,0.00015804,2]
[346944195,1735410643300,-500.0,0.00015804,2]
[346944196,1735410643309,-500.0,0.00015804,2]
[346944197,1735410643319,-500.0,0.00015804,2]
[346944198,1735410643329,-500.0,0.00015804,2]
[346944199,1735410643338,-500.0,0.00015804,2]
[346944200,1735410643348,-492.28703826,0.00015804,2]
[346944201,1735410643360,-500.0,0.00015804,2]
[346944202,1735410643371,-500.0,0.00015804,2]
[346944203,1735410643381,-500.0,0.00015804,2]
[346944204,1735410643390,-500.0,0.00015804,2]
[346944205,1735410643399,-500.0,0.00015804,2]
[346944206,1735410643408,-500.0,0.00015804,2]
[346944207,1735410643418,-500.0,0.00015804,2]
[346944208,1735410643427,-326.51465896,0.00015804,2]
[346944209,1735410643436,-500.0,0.00015804,2]
[346944210,1735410643446,-500.0,0.00015804,2]
[346944211,1735410643455,-500.0,0.00015804,2]
[346944212,1735410643464,-500.0,0.00015804,2]
[346944213,1735410643474,-500.0,0.00015804,2]
[346944214,1735410643483,-500.0,0.00015804,2]
[346944215,1735410643493,-391.65,0.00015804,2]
[346944216,1735410643505,-164.64,0.00015804,2]
[346944218,1735410643514,-448.88,0.00015804,2]
[346944219,1735410643523,-500.0,0.00015804,2]
[346944220,1735410643532,-575.1,0.00015804,2]
[346944221,1735410643541,-500.0,0.00015805,2]
[346944222,1735410643550,-192.09,0.00015806,2]
[346944223,1735410643559,-500.0,0.00015808,2]
[346944224,1735410643567,-502.88,0.00015808,2]
[346944225,1735410643576,-500.0,0.00015808,2]
[346944226,1735410643586,-500.0,0.0001581,2]
[346944227,1735410643595,-500.0,0.00016075,2]
[346944228,1735410643604,-422.1902941,0.00016075,2]
[346944229,1735410643614,-500.0,0.00016075,2]
[346944230,1735410643623,-500.0,0.00016075,2]
[346944231,1735410643632,-500.0,0.00016076,2]
[346944232,1735410643641,-500.0,0.00016076,2]
[346944233,1735410643650,-630.92,0.00016076,2]
[346944234,1735410643660,-1129.27,0.00016076,2]
[346944235,1735410643669,-500.0,0.00016076,2]
[346944236,1735410643678,-500.0,0.00016076,2]
[346944237,1735410643687,-500.0,0.00016076,2]
[346944238,1735410643696,-500.0,0.00016076,2]
[346944239,1735410643705,-500.0,0.00016076,2]
[346944240,1735410643715,-500.0,0.00016076,2]
[346944241,1735410643724,-500.0,0.00016076,2]
[346944242,1735410643733,-500.0,0.00016076,2]
[346944243,1735410643742,-2120.87,0.00016076,2]
[346944244,1735410643751,-220.5,0.00016076,2]
[346944245,1735410643760,-500.0,0.00016077,2]
[346944246,1735410643769,-500.0,0.00016077,2]
[346944247,1735410643778,-409.48,0.00016077,2]
[346944248,1735410643787,-500.0,0.00016077,2]
[346944249,1735410643796,-565.97,0.00016077,2]
[346944250,1735410643805,-500.0,0.00016077,2]
[346944251,1735410643815,-500.0,0.00016077,2]
[346944252,1735410643827,-500.0,0.00016077,2]
[346944253,1735410643835,-500.0,0.00016077,2]
[346944254,1735410643844,-500.0,0.00016077,2]
[346944255,1735410643853,-360.81,0.00016077,2]
[346944256,1735410643862,-500.0,0.00016077,2]
[346944257,1735410643871,-500.0,0.00016077,2]
[346944258,1735410643880,-500.0,0.00016077,2]
[346944259,1735410643889,-500.0,0.00016077,2]
[346944260,1735410643898,-500.0,0.00016077,2]
[346944261,1735410643907,-500.0,0.00016077,2]
[346944262,1735410643916,-500.0,0.00016077,2]
[346944263,1735410643926,-336.46,0.00016078,2]
[346944264,1735410643934,-539.46,0.00016078,2]
[346944265,1735410643943,-167.31,0.00016078,2]
[346944266,1735410643952,-500.0,0.00016082,2]
[346944267,1735410643961,-500.0,0.00016084,2]
[346944268,1735410643971,-450.48,0.00016349,2]
[346944269,1735410643982,-500.0,0.00016349,2]
[346944270,1735410643991,-500.0,0.0001635,2]
[346944271,1735410644000,-500.0,0.0001635,2]
[346944272,1735410644009,-1129.27,0.0001635,2]
[346944273,1735410644018,-500.0,0.0001635,2]
[346944274,1735410644027,-500.0,0.0001635,2]
[346944275,1735410644036,-264.66,0.0001635,2]
[346944276,1735410644046,-344.55,0.0001635,2]
[346944277,1735410644055,-500.0,0.0001635,2]
[346944278,1735410644067,-289.89,0.0001635,2]
[346944279,1735410644077,-386.43,0.0001635,2]
[346944280,1735410644087,-2120.87,0.0001635,2]
[346944281,1735410644097,-483.63,0.00016351,2]
[346944282,1735410644108,-500.0,0.00016351,2]
[346944283,1735410644117,-233.22,0.00016351,2]
[346944284,1735410644127,-500.0,0.00016356,2]
[346944285,1735410644137,-500.0,0.00016358,2]
[346944286,1735410644147,-200.0,0.00016438,2]
[346944287,1735410644157,-500.0,0.00016438,2]
[346944288,1735410644166,-500.0,0.00016438,2]
[346944289,1735410644175,-500.0,0.00016438,2]
[346944290,1735410644185,-500.0,0.00016623,2]
[346944291,1735410644194,-500.0,0.00016624,2]
[346944292,1735410644203,-500.0,0.00016624,2]
[346944293,1735410644213,-1129.27,0.00016624,2]
[346944294,1735410644222,-568.33,0.00016624,2]
[346944295,1735410644231,-500.0,0.00016624,2]
[346944296,1735410644240,-2120.87,0.00016624,2]
[346944297,1735410644249,-500.0,0.00016625,2]
[346944298,1735410644258,-500.0,0.0001663,2]
[346944299,1735410644269,-500.0,0.00016632,2]
[346944300,1735410644279,-170.553,0.00016819,2]
[346944301,1735410644289,-500.0,0.00016897,2]
[346944302,1735410644300,-252.2,0.00016898,2]
[346944303,1735410644310,-500.0,0.00016898,2]
[346944304,1735410644321,-1129.27,0.00016898,2]
[346944305,1735410644331,-531.92,0.00016898,2]
[346944306,1735410644340,-2120.87,0.00016898,2]
[346944307,1735410644350,-500.0,0.00016899,2]
[346944308,1735410644359,-500.0,0.00016904,2]
[346944309,1735410644370,-500.0,0.00016906,2]
[346944310,1735410644379,-500.0,0.00017171,2]
[346944311,1735410644388,-481.18,0.00017172,2]
[346944312,1735410644397,-1129.27,0.00017172,2]
[346944313,1735410644407,-2120.87,0.00017172,2]
[346944314,1735410644417,-500.0,0.00017173,2]
[346944315,1735410644427,-500.0,0.00017178,2]
[346944316,1735410644436,-500.0,0.0001718,2]
[346944317,1735410644446,-500.0,0.00017445,2]
[346944318,1735410644455,-1129.27,0.00017446,2]
[346944319,1735410644465,-2120.87,0.00017446,2]
[346944320,1735410644475,-558.67,0.00017447,2]
[346944321,1735410644484,-500.0,0.00017452,2]
[346944322,1735410644494,-500.0,0.00017454,2]
[346944323,1735410644504,-500.0,0.00017719,2]
[346944324,1735410644513,-1129.27,0.0001772,2]
[346944325,1735410644523,-2120.87,0.0001772,2]
[346944326,1735410644532,-500.0,0.00017726,2]
[346944327,1735410644542,-500.0,0.00017728,2]
[346944328,1735410644551,-500.0,0.00017808,4]
[346944329,1735410644560,-500.0,0.00017993,2]
[346944330,1735410644569,-1129.27,0.00017994,2]
[346944331,1735410644578,-2120.87,0.00017994,2]
[346944332,1735410644587,-151.0,0.00017994,2]
[346944333,1735410644597,-151.0,0.00017994,2]
[346944334,1735410644608,-151.0,0.00017994,2]
[346944335,1735410644617,-151.0,0.00017995,2]
[346944336,1735410644626,-151.0,0.00017995,2]
[346944337,1735410644635,-151.0,0.00017995,2]
[346944338,1735410644645,-151.0,0.00017995,2]
[346944339,1735410644654,-151.0,0.00017995,2]
[346944340,1735410644664,-500.0,0.00018,2]
[346944341,1735410644755,-500.0,0.00018002,2]
[346944342,1735410644765,-151.0,0.00018006,2]
[346944343,1735410644775,-151.0,0.00018006,2]
[346944344,1735410644784,-151.0,0.00018006,2]
[346944345,1735410644793,-500.0,0.00018267,2]
[346944346,1735410644802,-1129.27,0.00018268,2]
[346944347,1735410644811,-151.0,0.00018268,2]
[346944348,1735410644824,-151.0,0.00018268,2]
[346944349,1735410644833,-151.0,0.00018268,2]
[346944350,1735410644843,-151.0,0.00018268,2]
[346944351,1735410644852,-151.0,0.00018268,2]
[346944352,1735410644862,-2120.87,0.00018268,2]
[346944353,1735410644871,-500.0,0.00018274,2]
[346944354,1735410644881,-500.0,0.00018276,2]
[346944355,1735410644890,-500.0,0.00018541,2]
[346944356,1735410644901,-1129.27,0.00018542,2]
[346944357,1735410644911,-2120.87,0.00018542,2]
[346944358,1735410644920,-151.0,0.00018543,2]
[346944359,1735410644929,-151.0,0.00018543,2]
[346944360,1735410644939,-500.0,0.00018548,2]
[346944361,1735410644949,-500.0,0.0001855,2]
[346944362,1735410644958,-352.3236556,0.00018603,2]
[346944363,1735410644968,-293.31,0.00018815,2]
[346944364,1735410644978,-1129.27,0.00018816,2]
[346944365,1735410644988,-2120.87,0.00018816,2]
[346944366,1735410644998,-151.0,0.00018817,2]
[346944367,1735410645008,-151.0,0.00018817,2]
[346944368,1735410645018,-151.0,0.00018817,2]
[346944369,1735410645027,-151.0,0.00018817,2]
[346944370,1735410645037,-151.0,0.00018817,2]
[346944371,1735410645047,-500.0,0.00018822,2]
[346944372,1735410645056,-500.0,0.00018824,2]
[346944373,1735410645066,-153.0,0.00018877,2]
[346944374,1735410645076,-153.0,0.00018877,2]
[346944375,1735410645086,-2676.13547195,0.00019,2]
[346944376,1735410645096,-1129.27,0.0001909,2]
[346944377,1735410645106,-2120.87,0.0001909,2]
[346944378,1735410645115,-151.0,0.00019091,2]
[346944379,1735410645124,-500.0,0.00019096,2]
[346944380,1735410645133,-500.0,0.00019098,2]
[346944381,1735410645143,-500.0,0.00019178,2]
[346944382,1735410645153,-500.0,0.00019178,6]